[Event "Live Chess"]
[Site "Chess.com"]
[Date "2010.12.01"]
[Round "-"]
[White "hipposcottimus"]
[Black "cira011"]
[Result "1-0"]
[CurrentPosition "8/8/3RK3/3PB3/1p6/1k1r4/7P/5q2 b - -"]
[Timezone "UTC"]
[ECO "B12"]
[ECOUrl "https://www.chess.com/openings/Caro-Kann-Defense-Advance-Variation"]
[UTCDate "2010.12.01"]
[UTCTime "22:54:39"]
[WhiteElo "1695"]
[BlackElo "1752"]
[TimeControl "60"]
[Termination "hipposcottimus won on time"]
[StartTime "22:54:39"]
[EndDate "2010.12.01"]
[EndTime "22:56:59"]
[Link "https://www.chess.com/game/live/73134021"]

1. e4 {[%clk 0:01:00]} 1... c6 {[%clk 0:01:00]} 2. d4 {[%clk 0:00:57.8]} 2... d5 {[%clk 0:01:00]} 3. e5 {[%clk 0:00:57.4]} 3... e6 {[%clk 0:00:59.4]} 4. f4 {[%clk 0:00:56.8]} 4... g6 {[%clk 0:00:59.4]} 5. Nf3 {[%clk 0:00:54.9]} 5... Bg7 {[%clk 0:00:59.4]} 6. c4 {[%clk 0:00:54.1]} 6... Ne7 {[%clk 0:00:59.4]} 7. Nc3 {[%clk 0:00:51.9]} 7... O-O {[%clk 0:00:59.4]} 8. Be2 {[%clk 0:00:49.9]} 8... b6 {[%clk 0:00:58.5]} 9. O-O {[%clk 0:00:49.3]} 9... Ba6 {[%clk 0:00:57.5]} 10. b4 {[%clk 0:00:46.6]} 10... Bxc4 {[%clk 0:00:56.3]} 11. Bxc4 {[%clk 0:00:45.1]} 11... dxc4 {[%clk 0:00:56.3]} 12. Bb2 {[%clk 0:00:42.7]} 12... b5 {[%clk 0:00:55.8]} 13. a3 {[%clk 0:00:42.2]} 13... a6 {[%clk 0:00:54.4]} 14. Rc1 {[%clk 0:00:41.5]} 14... Nd7 {[%clk 0:00:53.8]} 15. Ng5 {[%clk 0:00:38.6]} 15... Nb6 {[%clk 0:00:51.3]} 16. Qg4 {[%clk 0:00:37.6]} 16... Nbd5 {[%clk 0:00:48.5]} 17. Qh3 {[%clk 0:00:36.4]} 17... h5 {[%clk 0:00:46.8]} 18. Nf3 {[%clk 0:00:30.6]} 18... Nf5 {[%clk 0:00:41.4]} 19. Nh4 {[%clk 0:00:27.9]} 19... Nxh4 {[%clk 0:00:40.3]} 20. Qxh4 {[%clk 0:00:27.6]} 20... Qxh4 {[%clk 0:00:39.4]} 21. g3 {[%clk 0:00:26.1]} 21... Qd8 {[%clk 0:00:36.7]} 22. Rcd1 {[%clk 0:00:25.8]} 22... a5 {[%clk 0:00:35.3]} 23. Bc1 {[%clk 0:00:25.4]} 23... axb4 {[%clk 0:00:34.4]} 24. axb4 {[%clk 0:00:24.9]} 24... Ra3 {[%clk 0:00:33.4]} 25. Bd2 {[%clk 0:00:24.1]} 25... Ra2 {[%clk 0:00:31.4]} 26. Nxd5 {[%clk 0:00:22.5]} 26... cxd5 {[%clk 0:00:29.7]} 27. f5 {[%clk 0:00:22.3]} 27... exf5 {[%clk 0:00:28.4]} 28. g4 {[%clk 0:00:22]} 28... fxg4 {[%clk 0:00:26.3]} 29. Bc1 {[%clk 0:00:21.8]} 29... Qg5 {[%clk 0:00:23.8]} 30. Bxg5 {[%clk 0:00:21.2]} 30... f6 {[%clk 0:00:22.4]} 31. exf6 {[%clk 0:00:19.8]} 31... Bxf6 {[%clk 0:00:21.2]} 32. Bxf6 {[%clk 0:00:19.5]} 32... Ra3 {[%clk 0:00:16.9]} 33. Be5 {[%clk 0:00:19.1]} 33... Rxf1+ {[%clk 0:00:14.4]} 34. Rxf1 {[%clk 0:00:18.8]} 34... Rb3 {[%clk 0:00:13.9]} 35. Rf6 {[%clk 0:00:16.4]} 35... Rxb4 {[%clk 0:00:12.5]} 36. Rxg6+ {[%clk 0:00:15.7]} 36... Kf7 {[%clk 0:00:12.5]} 37. Rg5 {[%clk 0:00:15.1]} 37... Ke6 {[%clk 0:00:11.5]} 38. Rxh5 {[%clk 0:00:14.2]} 38... Rb1+ {[%clk 0:00:11.1]} 39. Kg2 {[%clk 0:00:12.8]} 39... Rb2+ {[%clk 0:00:11.1]} 40. Kg3 {[%clk 0:00:12.5]} 40... Rb3+ {[%clk 0:00:10.8]} 41. Kxg4 {[%clk 0:00:11.2]} 41... b4 {[%clk 0:00:10.4]} 42. Rh6+ {[%clk 0:00:10.7]} 42... Kd7 {[%clk 0:00:09]} 43. Rh7+ {[%clk 0:00:10.1]} 43... Kc6 {[%clk 0:00:08.8]} 44. Rh6+ {[%clk 0:00:09.5]} 44... Kb5 {[%clk 0:00:08]} 45. Rd6 {[%clk 0:00:09]} 45... Ka4 {[%clk 0:00:07.1]} 46. Rxd5 {[%clk 0:00:08.7]} 46... Rd3 {[%clk 0:00:06.3]} 47. Rd6 {[%clk 0:00:08.2]} 47... c3 {[%clk 0:00:05]} 48. Ra6+ {[%clk 0:00:07.8]} 48... Kb3 {[%clk 0:00:04.4]} 49. Rd6 {[%clk 0:00:06.4]} 49... c2 {[%clk 0:00:03.7]} 50. Kf5 {[%clk 0:00:06]} 50... c1=Q {[%clk 0:00:02.8]} 51. d5 {[%clk 0:00:05.4]} 51... Qf1+ {[%clk 0:00:01.8]} 52. Ke6 {[%clk 0:00:04.8]} 1-0

[Event "Live Chess"]
[Site "Chess.com"]
[Date "2010.12.01"]
[Round "-"]
[White "hipposcottimus"]
[Black "paradiddle"]
[Result "1-0"]
[CurrentPosition "4Qk1r/ppN3p1/5p1p/2p1p2P/2P1P3/P2P2P1/1P6/R4RK1 b - -"]
[Timezone "UTC"]
[ECO "B30"]
[ECOUrl "https://www.chess.com/openings/Sicilian-Defense-Old-Sicilian-Variation-3.c4"]
[UTCDate "2010.12.01"]
[UTCTime "22:51:17"]
[WhiteElo "1695"]
[BlackElo "1647"]
[TimeControl "60"]
[Termination "hipposcottimus won by checkmate"]
[StartTime "22:51:17"]
[EndDate "2010.12.01"]
[EndTime "22:53:05"]
[Link "https://www.chess.com/game/live/73133170"]

1. e4 {[%clk 0:01:00]} 1... c5 {[%clk 0:01:00]} 2. Nf3 {[%clk 0:00:59.7]} 2... Nc6 {[%clk 0:00:58.9]} 3. c4 {[%clk 0:00:59.4]} 3... d6 {[%clk 0:00:57.8]} 4. d3 {[%clk 0:00:59.1]} 4... Bg4 {[%clk 0:00:57.4]} 5. Nc3 {[%clk 0:00:58.8]} 5... e5 {[%clk 0:00:56.7]} 6. Be2 {[%clk 0:00:57]} 6... Nf6 {[%clk 0:00:56.2]} 7. Bg5 {[%clk 0:00:53.1]} 7... Bxf3 {[%clk 0:00:56.2]} 8. Bxf3 {[%clk 0:00:51.6]} 8... h6 {[%clk 0:00:56.2]} 9. Bxf6 {[%clk 0:00:51.3]} 9... Qxf6 {[%clk 0:00:56.2]} 10. Nd5 {[%clk 0:00:51.1]} 10... Qd8 {[%clk 0:00:54.3]} 11. O-O {[%clk 0:00:49.1]} 11... Be7 {[%clk 0:00:53.4]} 12. Qd2 {[%clk 0:00:48.7]} 12... Kf8 {[%clk 0:00:43]} 13. Be2 {[%clk 0:00:48.3]} 13... Nd4 {[%clk 0:00:40.8]} 14. f4 {[%clk 0:00:47.4]} 14... Nxe2+ {[%clk 0:00:38.4]} 15. Qxe2 {[%clk 0:00:47]} 15... Bh4 {[%clk 0:00:33.7]} 16. fxe5 {[%clk 0:00:45.1]} 16... dxe5 {[%clk 0:00:32.9]} 17. Qf3 {[%clk 0:00:43.7]} 17... f6 {[%clk 0:00:32.2]} 18. g3 {[%clk 0:00:38.6]} 18... Bg5 {[%clk 0:00:30.4]} 19. h4 {[%clk 0:00:37.4]} 19... Bd2 {[%clk 0:00:29.4]} 20. a3 {[%clk 0:00:35.9]} 20... Ba5 {[%clk 0:00:28.1]} 21. Qh5 {[%clk 0:00:30]} 21... Bc7 {[%clk 0:00:25.9]} 22. Qg6 {[%clk 0:00:28.6]} 22... Qe8 {[%clk 0:00:21.7]} 23. Qf5 {[%clk 0:00:25.8]} 23... Kf7 {[%clk 0:00:19.2]} 24. Nxc7 {[%clk 0:00:24.5]} 24... Qe6 {[%clk 0:00:17.5]} 25. Qxe6+ {[%clk 0:00:19]} 25... Kg6 {[%clk 0:00:17.1]} 26. Qf5+ {[%clk 0:00:18.2]} 26... Kf7 {[%clk 0:00:15.8]} 27. Qe6+ {[%clk 0:00:17.4]} 27... Kf8 {[%clk 0:00:15.1]} 28. h5 {[%clk 0:00:16.7]} 28... Re8 {[%clk 0:00:11.1]} 29. Qxe8# {[%clk 0:00:15.4]} 1-0

[Event "Live Chess"]
[Site "Chess.com"]
[Date "2010.12.01"]
[Round "-"]
[White "ArtaxToothbrush"]
[Black "hipposcottimus"]
[Result "0-1"]
[CurrentPosition "5r1k/pp4pp/3Q2n1/2p1p3/3p2Pr/3P3P/PPP2q2/R4K1R w - -"]
[Timezone "UTC"]
[ECO "C20"]
[ECOUrl "https://www.chess.com/openings/Kings-Pawn-Opening-Leonardis-Variation-2...Nf6"]
[UTCDate "2010.12.01"]
[UTCTime "22:48:24"]
[WhiteElo "1796"]
[BlackElo "1688"]
[TimeControl "60"]
[Termination "hipposcottimus won by checkmate"]
[StartTime "22:48:24"]
[EndDate "2010.12.01"]
[EndTime "22:50:00"]
[Link "https://www.chess.com/game/live/73132365"]

1. e4 {[%clk 0:01:00]} 1... e5 {[%clk 0:01:00]} 2. d3 {[%clk 0:00:57.1]} 2... Nf6 {[%clk 0:00:58.2]} 3. Bg5 {[%clk 0:00:56]} 3... d5 {[%clk 0:00:56.9]} 4. Bxf6 {[%clk 0:00:56]} 4... Qxf6 {[%clk 0:00:56.1]} 5. Nf3 {[%clk 0:00:56]} 5... Bd6 {[%clk 0:00:55.9]} 6. Be2 {[%clk 0:00:56]} 6... d4 {[%clk 0:00:54.6]} 7. Nbd2 {[%clk 0:00:54.3]} 7... c5 {[%clk 0:00:53.2]} 8. Nc4 {[%clk 0:00:54.3]} 8... Nc6 {[%clk 0:00:52.9]} 9. Nxd6+ {[%clk 0:00:53.4]} 9... Qxd6 {[%clk 0:00:52.7]} 10. O-O {[%clk 0:00:53.4]} 10... O-O {[%clk 0:00:52.2]} 11. Ng5 {[%clk 0:00:52.9]} 11... f5 {[%clk 0:00:51.6]} 12. exf5 {[%clk 0:00:51.4]} 12... Bxf5 {[%clk 0:00:51.1]} 13. Bg4 {[%clk 0:00:50.3]} 13... Qg6 {[%clk 0:00:50.3]} 14. Bxf5 {[%clk 0:00:49.1]} 14... Rxf5 {[%clk 0:00:50]} 15. Nf3 {[%clk 0:00:46.7]} 15... Rf4 {[%clk 0:00:48.2]} 16. g3 {[%clk 0:00:43.4]} 16... Raf8 {[%clk 0:00:46.1]} 17. Nh4 {[%clk 0:00:41.7]} 17... Rxh4 {[%clk 0:00:44.2]} 18. Qe2 {[%clk 0:00:39.2]} 18... Rh3 {[%clk 0:00:43.5]} 19. Kg2 {[%clk 0:00:38]} 19... Qh6 {[%clk 0:00:42.2]} 20. Rh1 {[%clk 0:00:37.6]} 20... Ne7 {[%clk 0:00:32.8]} 21. Qg4 {[%clk 0:00:36.6]} 21... Rh5 {[%clk 0:00:23.2]} 22. Qd7 {[%clk 0:00:34.2]} 22... Ng6 {[%clk 0:00:22.9]} 23. Qe6+ {[%clk 0:00:32.4]} 23... Kh8 {[%clk 0:00:20.8]} 24. g4 {[%clk 0:00:29.9]} 24... Qg5 {[%clk 0:00:18.7]} 25. Kf1 {[%clk 0:00:28.1]} 25... Rh4 {[%clk 0:00:17.7]} 26. h3 {[%clk 0:00:26.6]} 26... Qf4 {[%clk 0:00:16.2]} 27. Qd6 {[%clk 0:00:23]} 27... Qxf2# {[%clk 0:00:14.9]} 0-1

[Event "Live Chess"]
[Site "Chess.com"]
[Date "2010.12.01"]
[Round "-"]
[White "hipposcottimus"]
[Black "RazaAliSheikh"]
[Result "1-0"]
[CurrentPosition "5k2/5Q1R/2p5/p3p3/2P5/1P6/P5PP/7K b - -"]
[Timezone "UTC"]
[ECO "B01"]
[ECOUrl "https://www.chess.com/openings/Scandinavian-Defense-Mieses-Kotrc-Variation-3.Nc3"]
[UTCDate "2010.12.01"]
[UTCTime "22:45:34"]
[WhiteElo "1688"]
[BlackElo "1375"]
[TimeControl "60"]
[Termination "hipposcottimus won by checkmate"]
[StartTime "22:45:34"]
[EndDate "2010.12.01"]
[EndTime "22:47:29"]
[Link "https://www.chess.com/game/live/73131662"]

1. e4 {[%clk 0:01:00]} 1... d5 {[%clk 0:01:00]} 2. exd5 {[%clk 0:00:58.5]} 2... Qxd5 {[%clk 0:00:59.6]} 3. Nc3 {[%clk 0:00:58.2]} 3... Qe6+ {[%clk 0:00:59.1]} 4. Be2 {[%clk 0:00:57.6]} 4... Nd7 {[%clk 0:00:58.5]} 5. Nf3 {[%clk 0:00:56]} 5... Ngf6 {[%clk 0:00:58.1]} 6. d4 {[%clk 0:00:54.7]} 6... g6 {[%clk 0:00:57.7]} 7. Bg5 {[%clk 0:00:52.2]} 7... Bg7 {[%clk 0:00:56.5]} 8. Bxf6 {[%clk 0:00:51.1]} 8... Qxf6 {[%clk 0:00:55.7]} 9. O-O {[%clk 0:00:45.8]} 9... O-O {[%clk 0:00:54.9]} 10. Ne4 {[%clk 0:00:45.1]} 10... Qe6 {[%clk 0:00:52.3]} 11. Neg5 {[%clk 0:00:41.5]} 11... f6 {[%clk 0:00:49.9]} 12. Nxe6 {[%clk 0:00:40.3]} 12... Nb6 {[%clk 0:00:46.8]} 13. Nxf8 {[%clk 0:00:38.4]} 13... Kxf8 {[%clk 0:00:44.7]} 14. b3 {[%clk 0:00:35.1]} 14... Bg4 {[%clk 0:00:44.3]} 15. c4 {[%clk 0:00:34.8]} 15... Bxf3 {[%clk 0:00:43.5]} 16. Bxf3 {[%clk 0:00:34.5]} 16... Nd7 {[%clk 0:00:42.9]} 17. Bxb7 {[%clk 0:00:33.9]} 17... Re8 {[%clk 0:00:42.3]} 18. Bc6 {[%clk 0:00:33.5]} 18... Rd8 {[%clk 0:00:38.9]} 19. Bxd7 {[%clk 0:00:32.5]} 19... Rxd7 {[%clk 0:00:38.3]} 20. f4 {[%clk 0:00:32.3]} 20... g5 {[%clk 0:00:36.6]} 21. Rc1 {[%clk 0:00:30.8]} 21... gxf4 {[%clk 0:00:35.3]} 22. Qe1 {[%clk 0:00:30.4]} 22... f5 {[%clk 0:00:34.3]} 23. Rxf4 {[%clk 0:00:29.7]} 23... Bxd4+ {[%clk 0:00:30.4]} 24. Kh1 {[%clk 0:00:27.5]} 24... Rd6 {[%clk 0:00:28.1]} 25. Rxf5+ {[%clk 0:00:26.4]} 25... Ke8 {[%clk 0:00:25.9]} 26. Rd1 {[%clk 0:00:25.5]} 26... Bf2 {[%clk 0:00:23.4]} 27. Rxf2 {[%clk 0:00:20.1]} 27... Rxd1 {[%clk 0:00:22.2]} 28. Qxd1 {[%clk 0:00:19.8]} 28... c6 {[%clk 0:00:20.2]} 29. Rf5 {[%clk 0:00:18.2]} 29... a5 {[%clk 0:00:19.6]} 30. Rh5 {[%clk 0:00:17.9]} 30... h6 {[%clk 0:00:18.4]} 31. Rxh6 {[%clk 0:00:16.8]} 31... Kf7 {[%clk 0:00:17.8]} 32. Qh5+ {[%clk 0:00:16.3]} 32... Kg7 {[%clk 0:00:15.7]} 33. Qg6+ {[%clk 0:00:15.6]} 33... Kf8 {[%clk 0:00:12.8]} 34. Rh7 {[%clk 0:00:14.6]} 34... e5 {[%clk 0:00:09.1]} 35. Qf7# {[%clk 0:00:13.7]} 1-0

[Event "Live Chess"]
[Site "Chess.com"]
[Date "2010.12.01"]
[Round "-"]
[White "RazaAliSheikh"]
[Black "hipposcottimus"]
[Result "0-1"]
[CurrentPosition "6k1/6pp/p5b1/P1p5/2P4P/8/5r2/2K3r1 w - -"]
[Timezone "UTC"]
[ECO "A00"]
[ECOUrl "https://www.chess.com/openings/Clemenz-Opening-1...e5"]
[UTCDate "2010.12.01"]
[UTCTime "22:43:11"]
[WhiteElo "1377"]
[BlackElo "1686"]
[TimeControl "60"]
[Termination "hipposcottimus won by checkmate"]
[StartTime "22:43:11"]
[EndDate "2010.12.01"]
[EndTime "22:45:09"]
[Link "https://www.chess.com/game/live/73131079"]

1. h3 {[%clk 0:01:00]} 1... e5 {[%clk 0:01:00]} 2. g3 {[%clk 0:00:59.5]} 2... d5 {[%clk 0:00:59.8]} 3. f4 {[%clk 0:00:59.2]} 3... c5 {[%clk 0:00:59.5]} 4. fxe5 {[%clk 0:00:58.3]} 4... Nc6 {[%clk 0:00:58.4]} 5. d3 {[%clk 0:00:57.2]} 5... f6 {[%clk 0:00:57.8]} 6. e4 {[%clk 0:00:56.2]} 6... fxe5 {[%clk 0:00:55.9]} 7. exd5 {[%clk 0:00:54.8]} 7... Qxd5 {[%clk 0:00:55.6]} 8. Nf3 {[%clk 0:00:52]} 8... Nd4 {[%clk 0:00:52.8]} 9. Bg2 {[%clk 0:00:46.5]} 9... Nf6 {[%clk 0:00:48.9]} 10. Rg1 {[%clk 0:00:45]} 10... e4 {[%clk 0:00:46.2]} 11. Nh4 {[%clk 0:00:43.6]} 11... Be7 {[%clk 0:00:40.5]} 12. Bxe4 {[%clk 0:00:41.5]} 12... Nxe4 {[%clk 0:00:37.9]} 13. dxe4 {[%clk 0:00:40.5]} 13... Qxe4+ {[%clk 0:00:37.6]} 14. Qe2 {[%clk 0:00:39.1]} 14... Nxc2+ {[%clk 0:00:36.4]} 15. Kd2 {[%clk 0:00:34.5]} 15... Qxe2+ {[%clk 0:00:35.4]} 16. Kxe2 {[%clk 0:00:33.6]} 16... Nxa1 {[%clk 0:00:34.9]} 17. Be3 {[%clk 0:00:31.9]} 17... O-O {[%clk 0:00:33.9]} 18. Bf4 {[%clk 0:00:30.6]} 18... Nc2 {[%clk 0:00:33.6]} 19. Be5 {[%clk 0:00:29.5]} 19... Bf6 {[%clk 0:00:32.4]} 20. Nf5 {[%clk 0:00:28.8]} 20... Bxe5 {[%clk 0:00:31.4]} 21. Nc3 {[%clk 0:00:27.8]} 21... Nd4+ {[%clk 0:00:30.6]} 22. Kd3 {[%clk 0:00:24.8]} 22... Nxf5 {[%clk 0:00:29.5]} 23. Kc4 {[%clk 0:00:24]} 23... Bxc3 {[%clk 0:00:28.4]} 24. bxc3 {[%clk 0:00:22.5]} 24... b5+ {[%clk 0:00:27.6]} 25. Kxb5 {[%clk 0:00:20.7]} 25... a6+ {[%clk 0:00:26.2]} 26. Kc4 {[%clk 0:00:20.2]} 26... Bb7 {[%clk 0:00:24.9]} 27. Kb3 {[%clk 0:00:19.8]} 27... Ne3 {[%clk 0:00:23.9]} 28. a4 {[%clk 0:00:19.3]} 28... Nd5 {[%clk 0:00:22.4]} 29. Rd1 {[%clk 0:00:18.7]} 29... Rad8 {[%clk 0:00:20.4]} 30. Rxd5 {[%clk 0:00:17.9]} 30... Bxd5+ {[%clk 0:00:18.7]} 31. c4 {[%clk 0:00:17.5]} 31... Be4 {[%clk 0:00:18.2]} 32. Kb2 {[%clk 0:00:15]} 32... Rd3 {[%clk 0:00:17.9]} 33. Kc2 {[%clk 0:00:13.6]} 33... Bg6 {[%clk 0:00:17.6]} 34. Kc1 {[%clk 0:00:11.2]} 34... Rf2 {[%clk 0:00:17.3]} 35. a5 {[%clk 0:00:06.7]} 35... Rxg3 {[%clk 0:00:16.8]} 36. h4 {[%clk 0:00:04.2]} 36... Rg1# {[%clk 0:00:16.3]} 0-1

[Event "Live Chess"]
[Site "Chess.com"]
[Date "2010.12.01"]
[Round "-"]
[White "hipposcottimus"]
[Black "johnelassona"]
[Result "1-0"]
[CurrentPosition "3r2k1/5p2/4p3/2p1P1pp/2P5/8/P5PP/6K1 b - -"]
[Timezone "UTC"]
[ECO "B20"]
[ECOUrl "https://www.chess.com/openings/Sicilian-Defense"]
[UTCDate "2010.12.01"]
[UTCTime "22:39:58"]
[WhiteElo "1684"]
[BlackElo "1744"]
[TimeControl "60"]
[Termination "hipposcottimus won on time"]
[StartTime "22:39:58"]
[EndDate "2010.12.01"]
[EndTime "22:42:03"]
[Link "https://www.chess.com/game/live/73130350"]

1. e4 {[%clk 0:01:00]} 1... c5 {[%clk 0:01:00]} 2. Bb5 {[%clk 0:00:58]} 2... Nc6 {[%clk 0:00:59.6]} 3. Bxc6 {[%clk 0:00:57.3]} 3... bxc6 {[%clk 0:00:58.1]} 4. Nf3 {[%clk 0:00:57.1]} 4... g6 {[%clk 0:00:57.6]} 5. c4 {[%clk 0:00:56.7]} 5... d6 {[%clk 0:00:56.7]} 6. d3 {[%clk 0:00:56.5]} 6... Bg7 {[%clk 0:00:56.1]} 7. Nc3 {[%clk 0:00:56.2]} 7... Nf6 {[%clk 0:00:55.5]} 8. Bd2 {[%clk 0:00:54.6]} 8... O-O {[%clk 0:00:54.5]} 9. O-O {[%clk 0:00:54.1]} 9... e6 {[%clk 0:00:53.7]} 10. Ne1 {[%clk 0:00:53.8]} 10... Nd7 {[%clk 0:00:52.3]} 11. f4 {[%clk 0:00:53.5]} 11... d5 {[%clk 0:00:51.3]} 12. Nf3 {[%clk 0:00:53.2]} 12... dxe4 {[%clk 0:00:48.9]} 13. Nxe4 {[%clk 0:00:52.6]} 13... Nf6 {[%clk 0:00:47.5]} 14. Bc3 {[%clk 0:00:49.7]} 14... Nxe4 {[%clk 0:00:46.1]} 15. dxe4 {[%clk 0:00:49.4]} 15... Bb7 {[%clk 0:00:44.4]} 16. Qb3 {[%clk 0:00:45.2]} 16... Rb8 {[%clk 0:00:41.9]} 17. Qc2 {[%clk 0:00:43.2]} 17... Ba6 {[%clk 0:00:40.9]} 18. Rad1 {[%clk 0:00:42.7]} 18... Bxc4 {[%clk 0:00:39.5]} 19. Rxd8 {[%clk 0:00:40.4]} 19... Rfxd8 {[%clk 0:00:36.7]} 20. b3 {[%clk 0:00:39.7]} 20... Bb5 {[%clk 0:00:35.4]} 21. e5 {[%clk 0:00:36.1]} 21... Bf8 {[%clk 0:00:32.1]} 22. Nd2 {[%clk 0:00:35.8]} 22... a5 {[%clk 0:00:30.4]} 23. Nc4 {[%clk 0:00:35.4]} 23... Bxc4 {[%clk 0:00:28.2]} 24. bxc4 {[%clk 0:00:31.2]} 24... a4 {[%clk 0:00:27.2]} 25. Qxa4 {[%clk 0:00:29.4]} 25... Rd3 {[%clk 0:00:22.4]} 26. Qc2 {[%clk 0:00:26.9]} 26... Rbd8 {[%clk 0:00:19.8]} 27. Rc1 {[%clk 0:00:24.7]} 27... Bh6 {[%clk 0:00:15.3]} 28. Qb3 {[%clk 0:00:24.1]} 28... Bxf4 {[%clk 0:00:13.6]} 29. Rf1 {[%clk 0:00:23.8]} 29... g5 {[%clk 0:00:11.4]} 30. Qb7 {[%clk 0:00:22.5]} 30... h5 {[%clk 0:00:09.5]} 31. Qxc6 {[%clk 0:00:21.4]} 31... Be3+ {[%clk 0:00:07.5]} 32. Kh1 {[%clk 0:00:19.5]} 32... Rxc3 {[%clk 0:00:06.4]} 33. Rg1 {[%clk 0:00:18.2]} 33... Rcd3 {[%clk 0:00:04.5]} 34. Qc7 {[%clk 0:00:15.9]} 34... Bxg1 {[%clk 0:00:01.8]} 35. Qxd8+ {[%clk 0:00:13.6]} 35... Rxd8 {[%clk 0:00:00.2]} 36. Kxg1 {[%clk 0:00:13.4]} 1-0

[Event "Live Chess"]
[Site "Chess.com"]
[Date "2010.12.01"]
[Round "-"]
[White "Orthodoxforever"]
[Black "hipposcottimus"]
[Result "1-0"]
[CurrentPosition "8/7p/8/5p2/1k6/p4PP1/K6P/8 b - -"]
[Timezone "UTC"]
[ECO "C45"]
[ECOUrl "https://www.chess.com/openings/Scotch-Game"]
[UTCDate "2010.12.01"]
[UTCTime "20:22:06"]
[WhiteElo "1779"]
[BlackElo "1684"]
[TimeControl "60"]
[Termination "Orthodoxforever won on time"]
[StartTime "20:22:06"]
[EndDate "2010.12.01"]
[EndTime "20:24:19"]
[Link "https://www.chess.com/game/live/73093569"]

1. e4 {[%clk 0:01:00]} 1... e5 {[%clk 0:01:00]} 2. Nf3 {[%clk 0:00:59.2]} 2... Nc6 {[%clk 0:00:59.8]} 3. d4 {[%clk 0:00:58.4]} 3... Nf6 {[%clk 0:00:59.6]} 4. d5 {[%clk 0:00:57.1]} 4... Ne7 {[%clk 0:00:56.8]} 5. Nxe5 {[%clk 0:00:56.3]} 5... d6 {[%clk 0:00:55.4]} 6. Nxf7 {[%clk 0:00:55.4]} 6... Kxf7 {[%clk 0:00:52.2]} 7. e5 {[%clk 0:00:54.5]} 7... dxe5 {[%clk 0:00:49.7]} 8. Bg5 {[%clk 0:00:53.7]} 8... Nfxd5 {[%clk 0:00:48.6]} 9. Qh5+ {[%clk 0:00:51.7]} 9... g6 {[%clk 0:00:46.8]} 10. Qf3+ {[%clk 0:00:50.8]} 10... Nf4 {[%clk 0:00:44]} 11. Bxf4 {[%clk 0:00:49.1]} 11... exf4 {[%clk 0:00:43.5]} 12. Qxf4+ {[%clk 0:00:48.4]} 12... Nf5 {[%clk 0:00:43.2]} 13. Bc4+ {[%clk 0:00:47.3]} 13... Kg7 {[%clk 0:00:39.8]} 14. Qe5+ {[%clk 0:00:44.7]} 14... Qf6 {[%clk 0:00:33.6]} 15. Qxc7+ {[%clk 0:00:43.8]} 15... Be7 {[%clk 0:00:31.4]} 16. O-O {[%clk 0:00:41.3]} 16... Be6 {[%clk 0:00:30.3]} 17. Bxe6 {[%clk 0:00:39.1]} 17... Qxe6 {[%clk 0:00:28.1]} 18. Nc3 {[%clk 0:00:37.9]} 18... Qf6 {[%clk 0:00:27.6]} 19. Rfe1 {[%clk 0:00:35.9]} 19... Rhc8 {[%clk 0:00:27.3]} 20. Qxb7 {[%clk 0:00:34.5]} 20... Rab8 {[%clk 0:00:25.8]} 21. Qe4 {[%clk 0:00:33.3]} 21... Rxb2 {[%clk 0:00:24.7]} 22. Nd5 {[%clk 0:00:30.2]} 22... Re8 {[%clk 0:00:22.3]} 23. Nxf6 {[%clk 0:00:28.9]} 23... Kxf6 {[%clk 0:00:19.1]} 24. Qe5+ {[%clk 0:00:26.8]} 24... Kf7 {[%clk 0:00:15.8]} 25. Qxb2 {[%clk 0:00:25.7]} 25... Bf6 {[%clk 0:00:12.9]} 26. Qb3+ {[%clk 0:00:22.7]} 26... Kg7 {[%clk 0:00:10.3]} 27. Rxe8 {[%clk 0:00:21.6]} 27... Bxa1 {[%clk 0:00:10]} 28. Qg8+ {[%clk 0:00:20.3]} 28... Kh6 {[%clk 0:00:09.7]} 29. Rf8 {[%clk 0:00:17.6]} 29... Bg7 {[%clk 0:00:09.3]} 30. Rxf5 {[%clk 0:00:15.6]} 30... gxf5 {[%clk 0:00:07.8]} 31. Qxg7+ {[%clk 0:00:14.6]} 31... Kxg7 {[%clk 0:00:06.9]} 32. c4 {[%clk 0:00:14.6]} 32... Kf6 {[%clk 0:00:06.6]} 33. c5 {[%clk 0:00:14.6]} 33... Ke6 {[%clk 0:00:06]} 34. c6 {[%clk 0:00:14.6]} 34... Kd6 {[%clk 0:00:04.5]} 35. c7 {[%clk 0:00:14.6]} 35... Kxc7 {[%clk 0:00:04.1]} 36. a4 {[%clk 0:00:14.6]} 36... Kb6 {[%clk 0:00:03.6]} 37. a5+ {[%clk 0:00:14.6]} 37... Kxa5 {[%clk 0:00:02.5]} 38. g3 {[%clk 0:00:13.8]} 38... a6 {[%clk 0:00:02.3]} 39. Kf1 {[%clk 0:00:13.8]} 39... Kb6 {[%clk 0:00:01.9]} 40. Ke2 {[%clk 0:00:13.8]} 40... a5 {[%clk 0:00:01.6]} 41. Kd2 {[%clk 0:00:13.8]} 41... Kb5 {[%clk 0:00:01.3]} 42. Kc2 {[%clk 0:00:13.8]} 42... Kb4 {[%clk 0:00:01]} 43. Kb2 {[%clk 0:00:13.2]} 43... a4 {[%clk 0:00:00.8]} 44. Ka2 {[%clk 0:00:10.2]} 44... a3 {[%clk 0:00:00.5]} 45. f3 {[%clk 0:00:09]} 1-0